fUSD/lending_fUSD_20260218
["ID","MTS","AMOUNT","RATE_DAILY","PERIOD"]
[405876620,1771379438919,-151.0,0.0001,2]
[405876621,1771379438928,-151.0,0.0001,2]
[405876622,1771379438938,-151.0,0.0001,2]
[405876623,1771379438947,-151.0,0.0001,2]
[405876624,1771379438957,-151.0,0.0001,2]
[405876625,1771379438966,-151.0,0.0001,2]
[405876626,1771379438976,-151.0,0.0001,2]
[405876627,1771379438985,-151.0,0.0001,2]
[405876628,1771379438996,-151.0,0.0001,2]
[405876629,1771379439005,-151.0,0.0001,2]
[405876630,1771379439015,-151.0,0.0001,2]
[405876631,1771379439025,-151.0,0.0001,2]
[405876632,1771379439035,-151.0,0.0001,2]
[405876633,1771379439044,-151.0,0.0001,2]
[405876634,1771379439054,-151.0,0.0001,2]
[405876635,1771379439063,-151.0,0.0001,2]
[405876636,1771379439073,-151.0,0.0001,2]
[405876637,1771379439082,-151.0,0.0001,2]
[405876638,1771379439091,-200.0,0.0001,2]
[405876639,1771379439101,-151.0,0.0001,2]
[405876640,1771379439110,-337.0,0.0001,2]
[405876641,1771379439119,-337.0,0.0001,2]
[405876642,1771379439128,-338.01523699,0.0001,2]
[405876643,1771379439138,-2900.0,0.0001,3]
[405876644,1771379439148,-346.36933953,0.0001,2]
[405876645,1771379439157,-1072.08999206,0.00010026,2]
[405876646,1771379439167,-1016.25338608,0.00010026,2]
[405876647,1771379439176,-615.76582304,0.00010026,2]
[405876648,1771379439186,-1000.0,0.00010026,2]
[405876649,1771379439195,-502.64931561,0.00010026,2]
[405876650,1771379439205,-1000.0,0.00010026,2]
[405876651,1771379439214,-928.40407963,0.00010026,2]
[405876652,1771379439223,-1000.0,0.00010026,2]
[405876653,1771379439233,-306.32454784,0.00010026,2]
[405876654,1771379439242,-1000.0,0.00010026,2]
[405876655,1771379439251,-1000.0,0.00010026,2]
[405876656,1771379439260,-1000.0,0.00010026,2]
[405876657,1771379439270,-1000.0,0.00010026,2]
[405876658,1771379439281,-1000.0,0.00010026,2]
[405876659,1771379439290,-1000.0,0.00010274,2]
[405876660,1771379439299,-1010.65,0.00010274,2]
[405876661,1771379439309,-1010.65,0.00010548,2]
[405876662,1771379439319,-500.0,0.00010548,2]
[405876663,1771379439329,-200.0,0.00010548,2]
[405876664,1771379439340,-200.0,0.00010548,2]
[405876665,1771379439350,-1500.0,0.00010574,2]
[405876666,1771379439359,-1000.87268816,0.00010574,2]
[405876667,1771379439368,-345.35188168,0.00010574,2]
[405876668,1771379439377,-1500.0,0.00010574,2]
[405876669,1771379439387,-1500.0,0.00010574,2]
[405876670,1771379439396,-1500.0,0.00010574,2]
[405876671,1771379439406,-1500.0,0.00010574,2]
[405876672,1771379439415,-1500.0,0.00010574,2]
[405876673,1771379439425,-4609.0,0.00010615,2]
[405876674,1771379439434,-1252.0,0.00010616,2]
[405876675,1771379439444,-288.64141543,0.00010777,2]
[405876676,1771379439453,-1010.65,0.00010822,2]
[405876677,1771379439463,-6300.0,0.000109,3]
[405876678,1771379439473,-6122.39665962,0.000109,2]
[405876679,1771379439482,-6122.39665962,0.000109,2]
[405876680,1771379439492,-184.48,0.00010959,2]
[405876681,1771379439502,-1010.65,0.00011096,2]
[405876682,1771379439512,-500.0,0.00011096,2]
[405876683,1771379439521,-200.0,0.00011096,2]
[405876684,1771379439533,-200.0,0.00011096,2]
[405876685,1771379439542,-51247.2261605,0.00011099,2]
[405876686,1771379439551,-51247.22616044,0.00011099,2]
[405876687,1771379439561,-51247.22616044,0.00011099,2]
[405876688,1771379439571,-55849.49212392,0.00011099,2]
[405876689,1771379439580,-55849.4921239,0.00011099,2]
[405876690,1771379439590,-55849.4921239,0.00011099,2]
[405876691,1771379439599,-2000.0,0.00011122,2]
[405876692,1771379439608,-241.16686594,0.00011122,2]
[405876693,1771379439618,-527.71923747,0.00011122,2]
[405876694,1771379439627,-2000.0,0.00011122,2]
[405876695,1771379439636,-2000.0,0.00011122,2]
[405876696,1771379439645,-2000.0,0.00011122,2]
[405876697,1771379439654,-1163.46681334,0.00011133,2]
[405876698,1771379439663,-1050.0,0.00011134,7]
[405876699,1771379439673,-6122.39665962,0.0001117,2]
[405876700,1771379439682,-1961.28725068,0.0001119,2]
[405876701,1771379439691,-214183.0,0.000112,2]
[405876702,1771379439700,-13531.24,0.00011233,2]
[405876703,1771379439709,-152.95,0.00011233,2]
[405876704,1771379439718,-1000.0,0.00011301,2]
[405876705,1771379439727,-1010.65,0.0001137,2]
[405876706,1771379439737,-1121.73588017,0.00011407,2]
[405876707,1771379439746,-3536.41,0.00011507,2]
[405876708,1771379439756,-55849.4921239,0.00011619,2]
[405876709,1771379439765,-51247.22616044,0.00011619,2]
[405876710,1771379439774,-1010.65,0.00011644,2]
[405876711,1771379439783,-500.0,0.00011644,2]
[405876712,1771379439792,-200.0,0.00011644,2]
[405876713,1771379439802,-219.86429651,0.00011644,2]
[405876714,1771379439811,-1467.34826575,0.0001167,2]
[405876715,1771379439821,-2500.0,0.0001167,2]
[405876716,1771379439830,-1509.709324,0.0001167,2]
[405876717,1771379439839,-694.2764898,0.0001167,2]
[405876718,1771379439848,-6453.0,0.00011676,2]
[405876719,1771379439858,-2129.0,0.00011682,2]
[405876720,1771379439867,-5531.0,0.000117,3]
[405876721,1771379439877,-632.49162081,0.00011868,2]
[405876722,1771379439887,-12700.0,0.000119,4]
[405876723,1771379439896,-5800.0,0.000119,4]
[405876724,1771379439905,-1010.65,0.00011918,2]
[405876725,1771379439914,-23012.54,0.00012055,2]
[405876726,1771379439923,-5531.0,0.000121,5]
[405876727,1771379439932,-180.007889,0.00012118,2]
[405876728,1771379439942,-500.0,0.00012173,2]
[405876729,1771379439951,-500.0,0.00012173,2]
[405876730,1771379439961,-164.64358752,0.00012173,2]
[405876731,1771379439974,-500.0,0.00012173,2]
[405876732,1771379439983,-500.0,0.00012173,2]
[405876733,1771379439992,-500.0,0.00012173,2]
[405876734,1771379440001,-500.0,0.00012173,2]
[405876735,1771379440011,-545.94594679,0.00012173,2]
[405876736,1771379440020,-500.0,0.00012173,2]
[405876737,1771379440029,-500.0,0.00012173,2]
[405876738,1771379440038,-500.0,0.00012173,2]
[405876739,1771379440047,-500.0,0.00012173,2]
[405876740,1771379440056,-500.0,0.00012173,2]
[405876741,1771379440065,-500.0,0.00012173,2]
[405876742,1771379440074,-500.0,0.00012173,2]
[405876743,1771379440084,-500.0,0.00012173,2]
[405876744,1771379440093,-500.0,0.00012173,2]
[405876745,1771379440102,-2835.80040788,0.00012182,2]
[405876746,1771379440111,-1010.65,0.00012192,2]
[405876747,1771379440120,-500.0,0.00012192,2]
[405876748,1771379440130,-200.0,0.00012192,2]
[405876749,1771379440139,-3000.0,0.00012218,2]
[405876750,1771379440148,-1000.0,0.00012329,2]
[405876751,1771379440158,-1010.65,0.00012466,2]
[405876752,1771379440167,-1121.73588013,0.00012489,2]
[405876753,1771379440176,-6122.39665962,0.00012516,2]
[405876754,1771379440185,-1000.0,0.00012625,2]
[405876755,1771379440195,-55849.4921239,0.00012666,2]
[405876756,1771379440204,-51247.22616044,0.00012666,2]
[405876757,1771379440214,-1000.0,0.00012721,2]
[405876758,1771379440223,-1000.0,0.00012721,2]
[405876759,1771379440232,-228.72360334,0.00012721,2]
[405876760,1771379440242,-1003.32852641,0.00012721,2]
[405876761,1771379440251,-571.87903258,0.00012721,2]
[405876762,1771379440261,-544.61216662,0.00012721,2]
[405876763,1771379440270,-1000.0,0.00012721,2]
[405876764,1771379440279,-1000.0,0.00012721,2]
[405876765,1771379440288,-1000.0,0.00012721,2]
[405876766,1771379440297,-1000.0,0.00012721,2]
[405876767,1771379440306,-1000.0,0.00012721,2]
[405876768,1771379440315,-500.79797067,0.00012721,2]
[405876769,1771379440324,-509.41409571,0.00012721,2]
[405876770,1771379440333,-1000.0,0.00012721,2]
[405876771,1771379440342,-1000.0,0.00012721,2]
[405876772,1771379440351,-1010.65,0.0001274,2]
[405876773,1771379440360,-500.0,0.0001274,2]
[405876774,1771379440370,-200.0,0.0001274,2]
[405876775,1771379440378,-3500.0,0.00012766,2]
[405876776,1771379440388,-9035.0,0.00012844,2]
[405876777,1771379440397,-3620.0,0.00012849,2]
[405876778,1771379440407,-600.0,0.00013004,2]
[405876779,1771379440416,-1010.66336887,0.00013014,2]
[405876780,1771379440425,-745.86778969,0.00013268,2]
[405876781,1771379440435,-1500.0,0.00013268,2]
[405876782,1771379440445,-617.04551055,0.00013268,2]
[405876783,1771379440454,-1500.0,0.00013268,2]
[405876784,1771379440464,-593.32806004,0.00013268,2]
[405876785,1771379440473,-624.30108599,0.00013268,2]
[405876786,1771379440483,-807.32831336,0.00013268,2]
[405876787,1771379440492,-1500.0,0.00013268,2]
[405876788,1771379440501,-1500.0,0.00013268,2]
[405876789,1771379440510,-504.510834,0.00013288,2]
[405876790,1771379440519,-200.0,0.00013288,2]
[405876791,1771379440530,-861.48649544,0.00013314,2]
[405876792,1771379440540,-1121.73588013,0.00013571,2]
[405876793,1771379440550,-10000.0,0.00013598,2]
[405876794,1771379440559,-4588.3903,0.00013598,2]
[405876795,1771379440568,-951.9112,0.00013598,2]
[405876796,1771379440577,-434.8597435,0.00013655,2]
[405876797,1771379440587,-150.0,0.00013655,2]
[405876798,1771379440596,-547.26,0.00013698,2]
[405876799,1771379440605,-547.26,0.00013698,2]
[405876800,1771379440616,-547.26,0.00013698,2]
[405876801,1771379440625,-547.26,0.00013698,2]
[405876802,1771379440634,-547.26,0.00013698,2]
[405876803,1771379440643,-547.26,0.00013698,2]
[405876804,1771379440653,-547.26,0.00013698,2]
[405876805,1771379440662,-547.26,0.00013698,2]
[405876806,1771379440671,-547.26,0.00013698,2]
[405876807,1771379440680,-547.26,0.00013698,2]
[405876808,1771379440689,-547.26,0.00013698,2]
[405876809,1771379440698,-547.26,0.00013698,2]
[405876810,1771379440708,-547.26,0.00013698,2]
[405876811,1771379440717,-547.26,0.00013698,2]
[405876812,1771379440726,-547.26,0.00013698,2]
[405876813,1771379440735,-547.26,0.00013698,2]
[405876814,1771379440745,-547.26,0.00013698,2]
[405876815,1771379440754,-547.26,0.00013698,2]
[405876816,1771379440764,-547.26,0.00013698,2]
[405876817,1771379440774,-547.26,0.00013698,2]
[405876818,1771379440783,-547.26,0.00013698,2]
[405876819,1771379440792,-547.26,0.00013698,2]
[405876820,1771379440802,-547.26,0.00013698,2]
[405876821,1771379440814,-547.29430377,0.00013698,2]
[405876822,1771379440833,-500.0,0.00013698,2]
[405876823,1771379440854,-500.0,0.00013698,2]
[405876824,1771379440863,-500.0,0.00013698,2]
[405876825,1771379440873,-500.0,0.00013698,2]
[405876826,1771379440882,-500.0,0.00013698,2]
[405876827,1771379440891,-500.0,0.00013698,2]
[405876828,1771379440899,-500.0,0.00013698,2]
[405876829,1771379440908,-500.0,0.00013698,2]
[405876830,1771379440917,-500.0,0.00013698,2]
[405876831,1771379440926,-500.0,0.00013698,2]
[405876832,1771379440935,-500.0,0.00013698,2]
[405876833,1771379440944,-500.0,0.00013698,2]
[405876834,1771379440953,-500.0,0.00013698,2]
[405876835,1771379440962,-500.0,0.00013698,2]
[405876836,1771379440971,-500.0,0.00013698,2]
[405876837,1771379440980,-500.0,0.00013698,2]
[405876838,1771379440989,-500.0,0.00013698,2]
[405876839,1771379440998,-500.0,0.00013698,2]
[405876840,1771379441007,-500.0,0.00013698,2]
[405876841,1771379441017,-500.0,0.00013698,2]
[405876842,1771379441026,-500.0,0.00013698,2]
[405876843,1771379441035,-500.0,0.00013698,2]
[405876844,1771379441044,-388.28245386,0.00013698,2]
[405876845,1771379441058,-1479.65,0.00013698,2]
[405876846,1771379441067,-1479.65,0.00013698,2]
[405876847,1771379441076,-1479.65,0.00013698,2]
[405876848,1771379441086,-1479.65,0.00013698,2]
[405876849,1771379441095,-1479.65,0.00013698,2]
[405876850,1771379441104,-1479.65,0.00013698,2]
[405876851,1771379441114,-1479.65,0.00013698,2]
[405876852,1771379441123,-1479.65,0.00013698,2]
[405876853,1771379441132,-1479.65,0.00013698,2]
[405876854,1771379441142,-1479.65,0.00013698,2]
[405876855,1771379441151,-1479.65,0.00013698,2]
[405876856,1771379441161,-1479.65,0.00013698,2]
[405876857,1771379441170,-1479.65,0.00013698,2]
[405876858,1771379441179,-1479.65,0.00013698,2]
[405876859,1771379441188,-1479.65,0.00013698,2]
[405876860,1771379441197,-1479.65,0.00013698,2]
[405876861,1771379441207,-1479.65,0.00013698,2]
[405876862,1771379441215,-1479.65,0.00013698,2]
[405876863,1771379441224,-1479.65,0.00013698,2]
[405876864,1771379441234,-1479.65,0.00013698,2]
[405876865,1771379441243,-1479.65,0.00013698,2]
[405876866,1771379441253,-1479.65,0.00013698,2]
[405876867,1771379441262,-1479.65,0.00013698,2]
[405876868,1771379441271,-1479.78839473,0.00013698,2]
[405876869,1771379441280,-500.0,0.00013698,2]
[405876870,1771379441289,-500.0,0.00013698,2]
[405876871,1771379441298,-500.0,0.00013698,2]
[405876872,1771379441307,-500.0,0.00013698,2]
[405876873,1771379441316,-500.0,0.00013698,2]
[405876874,1771379441325,-500.0,0.00013698,2]
[405876875,1771379441334,-500.0,0.00013698,2]
[405876876,1771379441342,-500.0,0.00013698,2]
[405876877,1771379441351,-500.0,0.00013698,2]
[405876878,1771379441360,-500.0,0.00013698,2]
[405876879,1771379441369,-500.0,0.00013698,2]
[405876880,1771379441379,-500.0,0.00013698,2]
[405876881,1771379441387,-500.0,0.00013698,2]
[405876882,1771379441396,-500.0,0.00013698,2]
[405876883,1771379441405,-500.0,0.00013698,2]
[405876884,1771379441418,-500.0,0.00013698,2]
[405876885,1771379441427,-617.86272704,0.00013698,2]
[405876886,1771379441437,-2081.76,0.00013698,2]
[405876887,1771379441446,-2081.76,0.00013698,2]
[405876888,1771379441455,-2081.76,0.00013698,2]
[405876889,1771379441464,-2081.76,0.00013698,2]
[405876890,1771379441474,-2081.76,0.00013698,2]
[405876891,1771379441483,-2081.76,0.00013698,2]
[405876892,1771379441493,-2081.76,0.00013698,2]
[405876893,1771379441502,-2081.76,0.00013698,2]
[405876894,1771379441512,-2081.76,0.00013698,2]
[405876895,1771379441521,-2081.76,0.00013698,2]
[405876896,1771379441531,-2081.76,0.00013698,2]
[405876897,1771379441542,-500.0,0.00013698,2]
[405876898,1771379441551,-500.0,0.00013698,2]
[405876899,1771379441561,-500.0,0.00013698,2]
[405876900,1771379441570,-203.81274187,0.00013698,2]
[405876901,1771379441579,-2081.76,0.00013698,2]
[405876902,1771379441588,-2081.76,0.00013698,2]
[405876903,1771379441598,-2081.76,0.00013698,2]
[405876904,1771379441607,-2081.76,0.00013698,2]
[405876905,1771379441619,-2081.76,0.00013698,2]
[405876906,1771379441629,-2081.76,0.00013698,2]
[405876907,1771379441638,-2081.76,0.00013698,2]
[405876908,1771379441647,-2081.76,0.00013698,2]
[405876909,1771379441656,-2081.76,0.00013698,2]
[405876910,1771379441665,-2081.76,0.00013698,2]
[405876911,1771379441674,-2081.76,0.00013698,2]
[405876912,1771379441683,-2081.76,0.00013698,2]
[405876913,1771379441693,-2081.92483398,0.00013698,2]
[405876914,1771379441702,-1547.02,0.00013698,2]
[405876915,1771379441712,-1547.02,0.00013698,2]
[405876916,1771379441721,-1547.02,0.00013698,2]
[405876917,1771379441730,-1547.02,0.00013698,2]
[405876918,1771379441740,-1547.02,0.00013698,2]
[405876919,1771379441749,-1547.02,0.00013698,2]
[405876920,1771379441759,-1547.02,0.00013698,2]
[405876921,1771379441767,-1547.02,0.00013698,2]
[405876922,1771379441777,-1547.02,0.00013698,2]
[405876923,1771379441786,-1547.02,0.00013698,2]
[405876924,1771379441795,-1547.02,0.00013698,2]
[405876925,1771379441805,-1547.02,0.00013698,2]
[405876926,1771379441818,-1547.02,0.00013698,2]
[405876927,1771379441827,-1547.02,0.00013698,2]
[405876928,1771379441836,-1547.02,0.00013698,2]
[405876929,1771379441846,-1547.02,0.00013698,2]
[405876930,1771379441855,-1547.02,0.00013698,2]
[405876931,1771379441865,-1547.02,0.00013698,2]
[405876932,1771379441874,-1547.02,0.00013698,2]
[405876933,1771379441883,-1547.02,0.00013698,2]
[405876934,1771379441893,-1547.02,0.00013698,2]
[405876935,1771379441903,-1547.02,0.00013698,2]
[405876936,1771379441912,-1547.02,0.00013698,2]
[405876937,1771379441921,-1547.10962978,0.00013698,2]
[405876938,1771379441931,-500.0,0.00013698,2]
[405876939,1771379441940,-500.0,0.00013698,2]
[405876940,1771379441949,-500.0,0.00013698,2]
[405876941,1771379442228,-500.0,0.00013698,2]
[405876942,1771379442238,-500.0,0.00013698,2]
[405876943,1771379442248,-500.0,0.00013698,2]
[405876944,1771379442257,-500.0,0.00013698,2]
[405876945,1771379442266,-500.0,0.00013698,2]
[405876946,1771379442275,-500.0,0.00013698,2]
[405876947,1771379442284,-500.0,0.00013698,2]
[405876948,1771379442293,-500.0,0.00013698,2]
[405876949,1771379442302,-500.0,0.00013698,2]
[405876950,1771379442319,-634.99,0.00013698,2]
[405876951,1771379442331,-634.99,0.00013698,2]
[405876952,1771379442341,-634.99,0.00013698,2]
[405876953,1771379442351,-634.99,0.00013698,2]
[405876954,1771379442360,-634.99,0.00013698,2]
[405876955,1771379442370,-634.99,0.00013698,2]
[405876956,1771379442379,-634.99,0.00013698,2]
[405876957,1771379442389,-634.99,0.00013698,2]
[405876958,1771379442398,-634.99,0.00013698,2]
[405876959,1771379442408,-634.99,0.00013698,2]
[405876961,1771379442417,-634.99,0.00013698,2]
[405876963,1771379442427,-634.99,0.00013698,2]
[405876965,1771379442437,-634.99,0.00013698,2]
[405876967,1771379442446,-634.99,0.00013698,2]
[405876968,1771379442456,-634.99,0.00013698,2]
[405876969,1771379442465,-634.99,0.00013698,2]
[405876970,1771379442475,-634.99,0.00013698,2]
[405876971,1771379442484,-551.5455423,0.00013698,2]
[405876972,1771379442494,-634.99,0.00013698,2]
[405876973,1771379442503,-634.99,0.00013698,2]
[405876974,1771379442513,-634.99,0.00013698,2]
[405876975,1771379442522,-634.99,0.00013698,2]
[405876976,1771379442535,-634.99,0.00013698,2]
[405876977,1771379442548,-634.99,0.00013698,2]
[405876978,1771379442558,-635.01630866,0.00013698,2]
[405876979,1771379442568,-500.0,0.00013698,2]
[405876981,1771379442577,-500.0,0.00013698,2]
[405876983,1771379442587,-500.0,0.00013698,2]
[405876984,1771379442597,-196.13541993,0.00013698,2]
[405876985,1771379442606,-500.0,0.00013698,2]
[405876986,1771379442616,-500.0,0.00013698,2]
[405876987,1771379442625,-500.0,0.00013698,2]
[405876988,1771379442635,-500.0,0.00013698,2]
[405876989,1771379442644,-500.0,0.00013698,2]
[405876990,1771379442653,-184.20577534,0.00013698,2]
[405876991,1771379442663,-511.14294452,0.00013698,2]
[405876992,1771379442673,-500.0,0.00013698,2]
[405876993,1771379442683,-500.0,0.00013698,2]
[405876994,1771379442693,-500.0,0.00013698,2]
[405876996,1771379442702,-500.0,0.00013698,2]
[405876998,1771379442711,-500.0,0.00013698,2]
[405876999,1771379442721,-500.0,0.00013698,2]
[405877000,1771379442730,-500.0,0.00013698,2]
[405877002,1771379442740,-500.0,0.00013698,2]
[405877004,1771379442750,-500.0,0.00013698,2]
[405877005,1771379442759,-500.0,0.00013698,2]
[405877006,1771379442768,-500.0,0.00013698,2]
[405877007,1771379442777,-312.74253882,0.00013698,2]
[405877008,1771379442787,-500.0,0.00013698,2]
[405877009,1771379442796,-500.0,0.00013698,2]
[405877010,1771379442806,-500.0,0.00013698,2]
[405877011,1771379442815,-509.72616168,0.00013698,2]
[405877012,1771379442825,-502.06391581,0.00013698,2]
[405877013,1771379442834,-500.0,0.00013698,2]
[405877014,1771379442844,-500.0,0.00013698,2]
[405877015,1771379442853,-500.0,0.00013698,2]
[405877016,1771379442862,-500.0,0.00013698,2]
[405877017,1771379442871,-486.30947207,0.00013698,2]
[405877018,1771379442881,-172.64426925,0.00013698,2]
[405877019,1771379442890,-528.95515963,0.00013698,2]
[405877020,1771379442899,-650.14,0.00013698,2]
[405877021,1771379442908,-650.14,0.00013698,2]
[405877022,1771379442917,-650.14,0.00013698,2]
[405877023,1771379442927,-650.14,0.00013698,2]
[405877024,1771379442936,-650.14,0.00013698,2]
[405877025,1771379442946,-650.14,0.00013698,2]
[405877026,1771379442955,-650.14,0.00013698,2]
[405877027,1771379442964,-650.14,0.00013698,2]
[405877028,1771379442973,-650.14,0.00013698,2]
[405877029,1771379442983,-650.14,0.00013698,2]
[405877030,1771379442992,-650.14,0.00013698,2]
[405877031,1771379443002,-650.14,0.00013698,2]
[405877032,1771379443011,-650.14,0.00013698,2]
[405877033,1771379443021,-650.14,0.00013698,2]
[405877034,1771379443030,-650.14,0.00013698,2]
[405877035,1771379443039,-650.14,0.00013698,2]
[405877036,1771379443049,-650.14,0.00013698,2]
[405877037,1771379443058,-650.14,0.00013698,2]
[405877038,1771379443068,-650.14,0.00013698,2]
[405877039,1771379443077,-650.14,0.00013698,2]
[405877040,1771379443086,-650.14,0.00013698,2]
[405877041,1771379443096,-650.14,0.00013698,2]
[405877042,1771379443105,-650.14,0.00013698,2]
[405877043,1771379443115,-650.26047002,0.00013698,2]
[405877044,1771379443126,-1181.61,0.00013698,2]
[405877045,1771379443136,-1181.61,0.00013698,2]
[405877046,1771379443146,-1181.61,0.00013698,2]
[405877047,1771379443156,-1181.61,0.00013698,2]
[405877048,1771379443165,-1181.61,0.00013698,2]
[405877049,1771379443175,-1181.61,0.00013698,2]
[405877050,1771379443184,-1181.61,0.00013698,2]
[405877051,1771379443194,-1181.61,0.00013698,2]
[405877052,1771379443203,-1181.61,0.00013698,2]
[405877054,1771379443212,-1181.61,0.00013698,2]
[405877056,1771379443221,-1181.61,0.00013698,2]
[405877058,1771379443231,-1181.61,0.00013698,2]
[405877059,1771379443240,-1181.61,0.00013698,2]
[405877060,1771379443250,-1181.61,0.00013698,2]
[405877061,1771379443259,-1181.61,0.00013698,2]
[405877062,1771379443268,-1181.61,0.00013698,2]
[405877063,1771379443278,-1181.61,0.00013698,2]
[405877064,1771379443288,-1181.61,0.00013698,2]
[405877065,1771379443297,-1181.61,0.00013698,2]
[405877066,1771379443306,-1181.61,0.00013698,2]
[405877067,1771379443315,-1181.61,0.00013698,2]
[405877068,1771379443324,-1181.61,0.00013698,2]
[405877069,1771379443334,-1181.61,0.00013698,2]
[405877070,1771379443344,-1181.6753454,0.00013698,2]
[405877071,1771379443354,-500.0,0.00013698,2]
[405877073,1771379443363,-500.0,0.00013698,2]
[405877074,1771379443373,-500.0,0.00013698,2]
[405877075,1771379443382,-500.0,0.00013698,2]
[405877076,1771379443391,-591.86390297,0.00013698,2]
[405877077,1771379443401,-500.0,0.00013698,2]
[405877078,1771379443410,-500.0,0.00013698,2]
[405877079,1771379443419,-500.0,0.00013698,2]
[405877080,1771379443428,-500.0,0.00013698,2]
[405877081,1771379443437,-500.0,0.00013698,2]
[405877082,1771379443446,-333.33638828,0.00013698,2]
[405877083,1771379443455,-500.0,0.00013698,2]
[405877084,1771379443464,-500.0,0.00013698,2]
[405877085,1771379443473,-500.0,0.00013698,2]
[405877086,1771379443482,-500.0,0.00013698,2]
[405877087,1771379443491,-500.0,0.00013698,2]
[405877088,1771379443500,-500.0,0.00013698,2]
[405877089,1771379443509,-506.7698513,0.00013698,2]
[405877090,1771379443519,-500.0,0.00013698,2]
[405877091,1771379443530,-502.24199016,0.00013698,2]
[405877092,1771379443541,-215.58558367,0.00013698,2]
[405877093,1771379443551,-1013.62,0.00013698,2]
[405877094,1771379443560,-1013.62,0.00013698,2]
[405877095,1771379443570,-1013.62,0.00013698,2]
[405877096,1771379443579,-1013.62,0.00013698,2]
[405877097,1771379443588,-1013.62,0.00013698,2]
[405877098,1771379443597,-1013.62,0.00013698,2]
[405877099,1771379443607,-1013.62,0.00013698,2]
[405877100,1771379443617,-1013.62,0.00013698,2]
[405877101,1771379443627,-4655.54,0.00013699,2]
[405877102,1771379443637,-753.26,0.00013699,2]
[405877103,1771379443647,-500.61236308,0.00013699,2]
[405877104,1771379443656,-616.51234447,0.00013699,2]
[405877105,1771379443666,-576.27008267,0.00013699,2]
[405877106,1771379443676,-523.76939094,0.00013699,2]
[405877107,1771379443685,-561.22608734,0.00013699,2]
[405877108,1771379443695,-500.0,0.00013699,2]
[405877109,1771379443705,-162.00011726,0.00013699,2]
[405877110,1771379443714,-500.0,0.00013699,2]
[405877111,1771379443723,-500.0,0.00013699,2]
[405877112,1771379443733,-514.3981141,0.00013699,2]
[405877113,1771379443743,-500.0,0.00013699,2]
[405877114,1771379443753,-500.0,0.00013699,2]
[405877115,1771379443762,-500.0,0.00013699,2]
[405877117,1771379443772,-160.33154335,0.00013699,2]
[405877120,1771379443781,-160.47798963,0.00013699,2]
[405877122,1771379443790,-500.0,0.00013699,2]
[405877124,1771379443800,-163.17658841,0.00013699,2]
[405877125,1771379443809,-500.0,0.00013699,2]
[405877127,1771379443819,-377.84784353,0.00013699,2]
[405877128,1771379443828,-500.0,0.00013699,2]
[405877129,1771379443838,-500.0,0.00013699,2]
[405877130,1771379443847,-160.58306572,0.00013699,2]
[405877131,1771379443857,-310.22535934,0.00013699,2]
[405877132,1771379443867,-579.66143947,0.00013699,2]
[405877133,1771379443876,-168.48266914,0.00013699,2]
[405877134,1771379443885,-500.0,0.00013699,2]
[405877135,1771379443895,-157.98680662,0.00013699,2]
[405877136,1771379443904,-173.57638878,0.00013708,2]
[405877137,1771379443914,-160.0,0.00013708,2]
[405877138,1771379443923,-55849.4921239,0.00013712,2]
[405877139,1771379443932,-51247.22616044,0.00013712,2]